bitfinex-derivatives/quotes_SOLF0:USTF0_20241217
["timestamp","ask_amount","ask_price","bid_price","bid_amount"]
[1734475547017,6.48788931,222.68,222.62,7.0857]
[1734475547321,6.48788931,222.67,222.62,13.85211838]
[1734475547519,4.5493,222.72,222.62,13.85211838]
[1734475547520,6.48788931,222.66,222.62,7.0857]
[1734475547720,6.48788931,222.65,222.63,6.76641838]
[1734475547921,6.48788931,222.64,222.63,6.76641838]
[1734475548127,6.48788931,222.64,222.62,7.0857]
[1734475548323,6.48788931,222.63,222.61,6.76641838]
[1734475548520,6.48788931,222.62,222.59,4.74]
[1734475548814,6.48788931,222.61,222.59,4.74]
[1734475549020,2.2977,222.71,222.59,4.74]
[1734475549219,6.76641838,222.67,222.53,56.19204]
[1734475549418,2.2977,222.71,222.59,6.76641838]
[1734475549619,2.2453,222.68,222.58,2.2461]
[1734475549821,9.07521838,222.67,222.53,56.19204]
[1734475550026,2.3088,222.67,222.59,6.76641838]
[1734475550224,6.76641838,222.65,222.53,51.61204]
[1734475550424,6.76641838,222.63,222.54,4.98]
[1734475550724,6.76641838,222.63,222.55,6.76641838]
[1734475550924,2.2143,222.64,222.59,5.47474383]
[1734475551126,2.2458,222.63,222.59,5.47474383]
[1734475551320,9.01221838,222.63,222.59,5.47474383]
[1734475551824,9.01221838,222.63,222.55,9.01291838]
[1734475552221,9.01221838,222.63,222.53,51.61204]
[1734475552222,2.2143,222.64,222.56,2.2464]
[1734475552421,6.76641838,222.62,222.53,0.23204]
[1734475552922,6.76641838,222.62,222.55,6.76641838]
[1734475553123,9.01221838,222.62,222.55,6.76641838]
[1734475553424,2.2828,222.63,222.57,6.76641838]
[1734475553623,2.2828,222.63,222.55,12.14829653]
[1734475554025,2.2828,222.63,222.57,6.76641838]
[1734475554322,6.76641838,222.61,222.55,5.38187815]
[1734475554826,6.76641838,222.61,222.55,12.14829653]
[1734475557124,6.76641838,222.61,222.55,5.38187815]
[1734475557727,2.2458,222.62,222.56,6.76641838]
[1734475558532,2.2459,222.61,222.55,12.14829653]
[1734475559226,6.76641838,222.63,222.55,5.38187815]
[1734475559421,6.76641838,222.65,222.56,6.76641838]
[1734475559631,6.76641838,222.65,222.58,6.76641838]
[1734475559926,2.2456,222.64,222.58,6.76641838]
[1734475560731,2.2457,222.63,222.55,5.38187815]
[1734475561131,3.78607245,222.62,222.56,6.76641838]
[1734475561327,6.38226038,222.61,222.55,5.38187815]
[1734475561529,6.38226038,222.6,222.56,6.76641838]
[1734475561832,6.37949919,222.59,222.55,5.38187815]
[1734475562127,6.37949919,222.58,222.55,5.38187815]
[1734475562327,6.37949919,222.57,222.55,12.14829653]
[1734475562525,6.37949919,222.56,222.55,12.14829653]
[1734475563434,6.37949919,222.56,222.55,5.38187815]
[1734475563629,6.37949919,222.56,222.55,6.76641838]
[1734475564335,3.78445168,222.56,222.55,6.76641838]
[1734475564537,6.37872995,222.56,222.55,6.76641838]
[1734475564928,6.37872995,222.56,222.53,5.36294164]
[1734475565128,6.37872995,222.55,222.53,5.36294164]
[1734475565328,6.37872995,222.54,222.53,5.36294164]
[1734475565631,6.37872995,222.54,222.46,0.26962]
[1734475565829,6.37872995,222.53,222.48,5.36078395]
[1734475566031,6.37872995,222.52,222.48,5.36078395]
[1734475566229,6.37872995,222.51,222.5,6.76641838]
[1734475566430,6.37872995,222.51,222.48,5.36078395]
[1734475566735,6.37697566,222.5,222.48,5.36078395]
[1734475566934,4.365,222.55,222.49,6.76641838]
[1734475567133,6.37161643,222.54,222.49,6.76641838]
[1734475567333,4.365,222.55,222.49,6.76641838]
[1734475567334,2.59188154,222.53,222.49,6.76641838]
[1734475567535,6.37129899,222.52,222.49,6.76641838]
[1734475567732,6.37129899,222.51,222.49,6.76641838]
[1734475567925,6.37129899,222.5,222.49,6.76641838]
[1734475568125,6.37129899,222.5,222.48,5.36078395]
[1734475568332,3.77941745,222.49,222.48,5.36078395]
[1734475568626,3.77941745,222.54,222.48,12.12720233]
[1734475568829,6.37136754,222.53,222.5,6.76641838]
[1734475569132,6.37136754,222.52,222.5,6.76641838]
[1734475569333,6.37136754,222.51,222.5,6.76641838]
[1734475570534,2.59195009,222.51,222.5,6.76641838]
[1734475570736,6.37023913,222.51,222.5,6.76641838]
[1734475571140,6.37436369,222.51,222.48,12.12720233]
[1734475571335,6.37436369,222.5,222.48,12.12720233]
[1734475571532,3.77828904,222.49,222.48,12.12720233]
[1734475573331,4.365,222.55,222.48,12.12720233]
[1734475573530,6.38487189,222.54,222.48,12.12720233]
[1734475573736,6.38487189,222.53,222.48,12.12720233]
[1734475573933,6.38487189,222.52,222.48,12.12720233]
[1734475574138,6.38487189,222.51,222.48,12.12720233]
[1734475574333,3.78759801,222.5,222.48,12.12720233]
[1734475574536,4.365,222.55,222.48,12.12720233]
[1734475574737,6.38575386,222.54,222.5,6.76641838]
[1734475574938,6.38575386,222.53,222.5,6.76641838]
[1734475575144,6.38575386,222.52,222.5,6.76641838]
[1734475575339,6.38575386,222.51,222.48,12.12720233]
[1734475575535,3.78812039,222.5,222.48,12.12720233]
[1734475575734,3.78812039,222.49,222.48,12.12720233]
[1734475576136,4.365,222.55,222.48,12.12720233]
[1734475576340,6.38387675,222.54,222.48,12.12720233]
[1734475576536,4.365,222.55,222.48,5.36078395]
[1734475576537,6.76641838,222.52,222.48,5.36078395]
[1734475576740,4.365,222.55,222.49,6.76641838]
[1734475576741,6.38387675,222.51,222.49,6.76641838]
[1734475577041,3.78695513,222.5,222.49,6.76641838]
[1734475579145,6.38256517,222.5,222.49,6.76641838]
[1734475579344,3.78695513,222.5,222.49,6.76641838]
[1734475580144,4.365,222.55,222.49,6.76641838]
[1734475580348,6.38052854,222.54,222.49,6.76641838]
[1734475580653,6.38022028,222.53,222.47,6.76641838]
[1734475580843,6.38022028,222.52,222.47,12.10461376]
[1734475581042,6.38022028,222.51,222.47,12.10461376]
[1734475581251,3.78470869,222.5,222.47,12.10461376]
[1734475581452,4.365,222.55,222.49,6.76641838]
[1734475581749,6.37924652,222.54,222.49,6.76641838]
[1734475581950,6.37924652,222.53,222.49,6.76641838]
[1734475582148,6.37924652,222.52,222.49,6.76641838]
[1734475582347,6.37924652,222.51,222.49,6.76641838]
[1734475582648,3.78413236,222.5,222.49,6.76641838]
[1734475583446,3.78352926,222.5,222.49,6.76641838]
[1734475584445,3.78352926,222.5,222.47,5.33819538]
[1734475584648,6.76641838,222.52,222.46,0.26962]
[1734475584848,6.37827149,222.51,222.46,0.26962]
[1734475585148,6.37827149,222.5,222.46,0.26962]
[1734475585450,6.37858182,222.49,222.47,6.76641838]
[1734475585753,3.783682,222.48,222.47,6.76641838]
[1734475586146,3.783682,222.54,222.47,6.76641838]
[1734475586447,11.13141838,222.55,222.47,6.76641838]
[1734475586657,6.37950454,222.54,222.47,6.76641838]
[1734475586955,6.37950454,222.53,222.47,6.76641838]
[1734475587157,6.37950454,222.52,222.47,6.76641838]
[1734475587356,6.37950454,222.51,222.47,6.76641838]
[1734475587548,6.37950454,222.5,222.47,6.76641838]
[1734475587857,3.78440004,222.49,222.47,6.76641838]
[1734475588157,13.37771838,222.55,222.47,6.76641838]
[1734475588465,6.38129149,222.54,222.47,6.76641838]
[1734475588758,6.38129149,222.53,222.47,6.76641838]
[1734475588958,6.38129149,222.52,222.47,6.76641838]
[1734475589258,6.38129149,222.51,222.47,6.76641838]
[1734475589455,6.38129149,222.5,222.47,6.76641838]
[1734475589658,2.5958229,222.5,222.47,6.76641838]
[1734475589957,6.38185976,222.49,222.47,6.76641838]
[1734475590154,13.37771838,222.55,222.47,6.76641838]
[1734475590363,6.38475455,222.54,222.47,6.76641838]
[1734475590560,13.37771838,222.55,222.47,6.76641838]
[1734475590561,6.38475455,222.53,222.47,6.76641838]
[1734475590856,6.38475455,222.52,222.47,6.76641838]
[1734475591053,6.38475455,222.51,222.47,6.76641838]
[1734475591254,6.38475455,222.5,222.47,6.76641838]
[1734475591459,6.38475455,222.49,222.47,6.76641838]
[1734475591659,3.78752142,222.48,222.47,6.76641838]
[1734475591859,3.78752142,222.54,222.47,6.76641838]
[1734475592058,6.38552387,222.53,222.47,6.76641838]
[1734475592259,6.38552387,222.52,222.47,6.76641838]
[1734475592458,6.38552387,222.51,222.47,6.76641838]
[1734475592655,6.38552387,222.5,222.47,6.76641838]
[1734475592859,3.78752142,222.49,222.47,6.76641838]
[1734475593060,3.78752142,222.48,222.47,6.76641838]
[1734475593257,2.6000351,222.48,222.47,6.76641838]
[1734475594663,6.38755652,222.48,222.47,6.76641838]
[1734475595863,6.38755652,222.48,222.45,7.6224257]
[1734475596065,3.78752142,222.47,222.45,7.6224257]
[1734475596267,3.78752142,222.53,222.45,7.6224257]
[1734475596461,3.78752142,222.52,222.45,7.6224257]
[1734475596667,6.39117628,222.51,222.45,7.6224257]
[1734475596862,6.39117628,222.5,222.45,7.6224257]
[1734475597066,6.39117628,222.49,222.45,7.6224257]
[1734475597263,6.39117628,222.48,222.47,6.76641838]
[1734475598768,3.78752142,222.48,222.47,6.76641838]
[1734475598969,2.60436521,222.48,222.47,6.76641838]
[1734475599168,3.78752142,222.53,222.47,9.01351838]
[1734475599362,6.39238591,222.52,222.49,6.76641838]
[1734475599563,6.39238591,222.51,222.49,11.60641838]
[1734475599763,2.2295,222.55,222.49,11.60641838]
[1734475599967,2.2306,222.57,222.49,13.85331838]
[1734475599968,6.40360233,222.54,222.49,13.85331838]
[1734475600167,6.40360233,222.53,222.49,13.85331838]
[1734475600366,6.40360233,222.52,222.49,13.85331838]
[1734475600564,6.40360233,222.51,222.49,13.85331838]
[1734475600764,6.40360233,222.5,222.49,13.85331838]
[1734475601161,6.40360233,222.5,222.49,11.60641838]
[1734475601366,6.40360233,222.5,222.49,13.85331838]
[1734475601968,3.79871259,222.5,222.49,13.85331838]
[1734475602270,6.40851323,222.5,222.49,13.85331838]
[1734475602465,6.76641838,222.58,222.49,13.85331838]
[1734475602671,2.60686661,222.57,222.51,6.76641838]
[1734475602870,2.60686661,222.56,222.51,6.76641838]
[1734475603069,2.60686661,222.55,222.53,2.2465]
[1734475603261,2.60686661,222.54,222.53,2.2465]
[1734475603464,2.60686661,222.54,222.53,6.76641838]
[1734475603667,2.60686661,222.6,222.53,6.76641838]
[1734475603871,2.5908,222.62,222.49,4.84]
[1734475603872,2.60686661,222.59,222.49,4.84]
[1734475604067,2.60686661,222.58,222.56,6.76641838]
[1734475604273,6.76641838,222.63,222.57,4.6]
[1734475604473,2.60806235,222.62,222.57,4.6]
[1734475604664,2.60806235,222.61,222.57,4.6]
[1734475604972,2.60806235,222.6,222.57,6.8461]
[1734475605171,2.60806235,222.59,222.57,6.8461]
[1734475605372,2.60806235,222.58,222.57,6.8461]
[1734475605576,2.60806235,222.58,222.57,4.6]
[1734475605870,2.60674504,222.58,222.57,4.6]
[1734475606369,2.60674504,222.58,222.57,6.8461]
[1734475607169,1.10734504,222.58,222.57,6.8461]
[1734475607373,6.76641838,222.69,222.61,2.2457]
[1734475607570,5.0449,222.7,222.61,2.2457]
[1734475607571,7.2897,222.7,222.62,6.76641838]
[1734475607771,2.5735,222.7,222.62,6.76641838]
[1734475608072,9.33991838,222.7,222.62,6.76641838]
[1734475608675,2.3987,222.72,222.64,6.76641838]
[1734475608975,2.3987,222.72,222.66,9.01151838]
[1734475609172,2.3987,222.72,222.67,4.6]
[1734475609483,6.76641838,222.74,222.67,4.6]
[1734475609773,9.13651838,222.75,222.68,9.01141838]
[1734475610374,2.3701,222.75,222.69,2.2449]
[1734475610575,2.3701,222.75,222.7,6.76641838]
[1734475610971,9.20951838,222.76,222.7,6.76641838]
[1734475611174,2.3701,222.83,222.72,6.76641838]
[1734475611477,220.29464975,222.93,222.67,4.6]
[1734475611478,6.76641838,222.85,222.78,6.76641838]
[1734475611776,6.76641838,222.85,222.79,4.6]
[1734475612477,4.9304,222.88,222.79,4.6]
[1734475612678,6.76641838,222.86,222.79,4.6]
[1734475612975,6.76641838,222.86,222.8,6.76641838]
[1734475613273,183.83538229,223.04,222.82,6.76641838]
[1734475613476,183.83538229,223.04,222.84,9.00981838]
[1734475613477,2.2424,222.94,222.84,9.00981838]
[1734475613671,6.76641838,222.92,222.84,9.00981838]
[1734475613877,2.2424,222.94,222.84,9.00981838]
[1734475614077,6.76641838,222.92,222.84,9.00981838]
[1734475614279,3.72683122,222.91,222.85,2.2433]
[1734475614472,3.72683122,222.9,222.86,6.76641838]
[1734475614778,6.76641838,222.95,222.88,6.76641838]
[1734475614978,3.7272329,222.94,222.89,4.6]
[1734475615281,3.7272329,222.93,222.9,6.76641838]
[1734475615475,6.76641838,222.97,222.9,6.76641838]
[1734475615672,3.72076312,222.96,222.9,9.00921838]
[1734475615879,3.72076312,222.95,222.9,9.00921838]
[1734475616077,3.72076312,222.94,222.9,9.00921838]
[1734475616274,6.76641838,222.97,222.9,9.00921838]
[1734475616478,3.71476826,222.96,222.92,9.00901838]
[1734475616780,2.4723,223.01,222.94,6.76641838]
[1734475616976,3.7155201,223.0,222.94,6.76641838]
[1734475617175,3.7155201,222.99,222.94,6.76641838]
[1734475617373,2.4723,223.01,222.94,6.76641838]
[1734475617572,3.70951737,223.0,222.94,6.76641838]
[1734475617773,2.4723,223.01,222.89,4.6]
[1734475618074,3.70971779,223.0,222.89,4.6]
[1734475618375,6.76641838,223.0,222.92,6.76641838]
[1734475619172,3.70328044,222.99,222.92,12.14342765]
[1734475619377,9.23871838,223.01,222.94,6.76641838]
[1734475619575,3.69857449,223.0,222.94,6.76641838]
[1734475619774,3.69878809,222.99,222.94,6.76641838]
[1734475619972,9.23871838,223.01,222.94,6.76641838]
[1734475620178,3.69891633,223.0,222.94,6.76641838]
[1734475620481,2.4723,223.01,222.94,6.76641838]
[1734475620682,3.69852979,223.0,222.96,6.76641838]
[1734475620874,2.4723,223.01,222.96,6.76641838]
[1734475621073,3.69852844,223.0,222.96,6.76641838]
[1734475621380,2.4723,223.01,222.96,6.76641838]
[1734475621581,2.2415,223.03,222.96,6.76641838]
[1734475621772,3.69421303,223.02,222.96,6.76641838]
[1734475621978,9.00791838,223.03,222.97,4.6]
[1734475622177,3.69427706,223.02,222.97,4.6]
[1734475622380,6.76641838,223.03,222.97,4.6]
[1734475622581,6.76641838,223.05,222.97,4.6]
[1734475622875,8.45406384,223.04,222.97,4.6]
[1734475623083,3.69024774,223.03,222.98,6.76641838]
[1734475623378,2.2414,223.04,222.98,6.76641838]
[1734475626382,2.2414,223.04,222.98,9.00841838]
[1734475626585,6.76641838,223.05,222.98,6.76641838]
[1734475626880,6.76641838,223.05,222.92,5.37700927]
[1734475626881,6.76641838,222.99,222.92,5.37700927]
[1734475627083,7.3602,223.06,222.93,4.38]
[1734475627084,6.76641838,223.01,222.93,4.38]
[1734475627282,7.3602,223.06,222.96,6.76641838]
[1734475627579,6.76641838,223.03,222.96,6.76641838]
[1734475627780,6.76641838,223.03,222.97,6.76641838]
[1734475629383,7.3602,223.06,222.97,6.76641838]
[1734475629585,10.43855654,223.05,222.97,6.76641838]
[1734475629780,3.67213816,223.04,222.97,6.76641838]
[1734475630391,6.76641838,223.05,222.97,6.76641838]
[1734475630884,6.76641838,223.05,222.94,4.38]
[1734475631084,6.76641838,223.04,222.97,6.76641838]
[1734475631889,7.3602,223.06,222.99,6.76641838]
[1734475632089,3.67111427,223.05,222.99,6.76641838]
[1734475632290,7.3602,223.06,222.99,6.76641838]
[1734475632489,3.67073826,223.05,222.99,6.76641838]
[1734475632686,7.3602,223.06,222.99,6.76641838]
[1734475632687,3.67073826,223.04,222.99,6.76641838]
[1734475632887,7.3602,223.06,222.99,6.76641838]
[1734475633092,3.67068917,223.05,222.99,6.76641838]
[1734475633294,7.3602,223.06,222.99,6.76641838]
[1734475633893,7.3602,223.06,222.94,4.38]
[1734475634101,3.67062782,223.05,222.94,4.38]
[1734475634299,7.3602,223.06,223.0,6.76641838]
[1734475634494,3.67080327,223.05,223.0,6.76641838]
[1734475634702,7.3602,223.06,223.0,6.76641838]
[1734475634999,3.67080664,223.05,222.94,4.38]
[1734475635198,14.12661838,223.06,222.94,4.38]
[1734475635399,6.76641838,223.04,222.94,4.38]
[1734475635599,3.67035013,223.03,222.96,6.76641838]
[1734475635794,3.67035013,223.03,222.94,4.38]
[1734475636102,6.76641838,223.02,222.95,11.14641838]
[1734475636299,6.76641838,223.02,222.95,6.76641838]
[1734475636500,6.76641838,223.02,222.96,4.38]
[1734475636699,6.76641838,223.02,222.79,2.3796]
[1734475636899,6.76641838,223.0,222.8,5.20450653]
[1734475637098,6.76641838,222.98,222.85,5.49133968]
[1734475637297,2.4821,222.97,222.9,6.76641838]
[1734475637703,2.415,222.96,222.9,6.76641838]
[1734475638800,2.415,222.96,222.86,4.38]
[1734475639003,2.415,222.96,222.91,6.76641838]
[1734475639202,2.415,222.96,222.86,4.38]
[1734475639398,2.415,222.96,222.89,6.76641838]
[1734475639597,10.44474329,222.95,222.87,6.76641838]
[1734475639802,6.76641838,222.95,222.87,6.76641838]
[1734475640105,2.415,222.96,222.87,6.76641838]
[1734475640401,6.76641838,222.94,222.86,11.14641838]
[1734475640603,3.67678453,222.93,222.86,11.14641838]
[1734475641305,3.67678453,222.93,222.87,6.76641838]
[1734475642004,2.5692,222.92,222.87,6.76641838]
[1734475642204,3.67678453,222.91,222.87,6.76641838]
[1734475646300,2.53012426,222.9,222.87,6.76641838]
[1734475646504,3.67678453,222.89,222.87,6.76641838]
[1734475646707,2.5692,222.92,222.87,6.76641838]
[1734475646908,6.23255698,222.91,222.87,6.76641838]
[1734475647109,6.23255698,222.9,222.87,6.76641838]
[1734475647303,6.23255698,222.89,222.87,6.76641838]
[1734475647508,6.23255698,222.88,222.87,6.76641838]
[1734475649310,2.5692,222.92,222.87,6.76641838]
[1734475649611,6.25397715,222.91,222.87,6.76641838]
[1734475649806,6.25397715,222.9,222.87,6.76641838]
[1734475650105,6.25397715,222.89,222.87,6.76641838]
[1734475650305,6.25397715,222.88,222.87,6.76641838]
[1734475653311,6.25397715,222.88,222.86,11.14641838]
[1734475653509,6.25397715,222.87,222.86,11.14641838]
[1734475654609,6.25397715,222.87,222.82,5.38744702]
[1734475654914,6.27603267,222.86,222.83,4.2]
[1734475655113,2.5692,222.92,222.85,6.76641838]
[1734475655308,6.29650268,222.91,222.85,6.76641838]
[1734475655515,6.29650268,222.9,222.85,6.76641838]
[1734475655712,3.73997972,222.9,222.85,6.76641838]
[1734475655911,2.5692,222.92,222.85,6.76641838]
[1734475655912,6.2961335,222.89,222.85,6.76641838]
[1734475656109,6.2961335,222.88,222.87,6.76641838]
[1734475656308,5.11500321,222.88,222.87,6.76641838]
[1734475656512,6.30223264,222.88,222.87,6.76641838]
[1734475658921,2.55884943,222.88,222.87,6.76641838]
[1734475659107,6.30627142,222.88,222.87,6.76641838]
[1734475662218,6.30746415,222.88,222.87,6.76641838]
[1734475663317,6.30746415,222.88,222.82,5.38744702]
[1734475663616,6.30746415,222.87,222.83,4.2]
[1734475663821,14.56353409,222.96,222.83,4.2]
[1734475663822,6.30746415,222.86,222.83,4.2]
[1734475664012,6.30746415,222.85,222.83,4.2]
[1734475664210,3.74697973,222.84,222.83,4.2]
[1734475664416,14.56353409,222.96,222.83,4.2]
[1734475665019,14.56353409,222.96,222.88,6.76641838]
[1734475665921,2.415,222.96,222.88,6.76641838]
[1734475666215,6.76641838,222.95,222.88,6.76641838]
[1734475666617,6.76641838,222.93,222.82,5.38744702]
[1734475666822,6.76641838,222.93,222.85,6.76641838]
[1734475668919,6.76641838,222.93,222.87,6.76641838]
[1734475671615,2.6112,222.94,222.87,6.76641838]
[1734475672225,2.6112,222.94,222.82,5.38744702]
[1734475672426,9.00901838,222.93,222.86,2.2431]
[1734475672620,2.6112,222.94,222.87,6.76641838]
[1734475673126,2.2426,222.92,222.86,2.2431]
[1734475673823,2.6112,222.94,222.85,6.76641838]
[1734475674024,9.37761838,222.94,222.86,6.76641838]
[1734475676426,2.2426,222.93,222.87,2.243]
[1734475677525,2.243,222.88,222.82,6.76641838]
[1734475677727,6.76641838,222.9,222.82,6.76641838]
[1734475678027,2.2431,222.87,222.82,6.76641838]
[1734475678421,11.14003541,222.93,222.82,6.76641838]
[1734475678620,6.76641838,222.91,222.82,6.76641838]
[1734475678819,6.76641838,222.91,222.79,3.98]
[1734475679018,6.76641838,222.91,222.83,6.76641838]
[1734475679419,2.243,222.88,222.83,6.76641838]
[1734475681824,2.243,222.88,222.81,7.56778746]
[1734475682024,2.243,222.88,222.82,6.76641838]
[1734475683231,18.818132,222.9,222.82,6.76641838]
[1734475683427,2.2431,222.87,222.82,6.76641838]
[1734475684232,2.2429,222.89,222.84,6.76641838]
[1734475686032,2.2429,222.89,222.83,2.2435]
[1734475686234,9.00921838,222.91,222.82,6.76641838]
[1734475686431,18.81049389,222.92,222.86,6.76641838]
[1734475686636,11.1623087,222.92,222.86,6.76641838]
[1734475686827,11.1623087,222.92,222.87,2.2431]
[1734475687031,13.4048087,222.93,222.88,3.76]
[1734475687228,2.2425,222.93,222.88,10.52641838]
[1734475687427,2.2425,222.93,222.87,2.2431]
[1734475687630,6.76641838,222.93,222.86,2.2432]
[1734475687830,6.76641838,222.93,222.86,9.00961838]
[1734475688138,2.2425,222.93,222.88,6.76641838]
[1734475688532,6.76641838,222.96,222.88,6.76641838]
[1734475688933,2.2423,222.95,222.88,6.76641838]
[1734475689131,25.57724365,222.96,222.88,6.76641838]
[1734475689436,6.76641838,222.96,222.88,6.76641838]
[1734475689637,2.2426,222.93,222.88,6.76641838]
[1734475690039,6.76641838,222.96,222.88,6.76641838]
[1734475690040,25.57602387,222.96,222.88,6.76641838]
[1734475690332,2.2426,222.92,222.88,6.76641838]
[1734475690537,11.16167051,222.98,222.91,6.76641838]
[1734475690738,26.41572828,222.97,222.91,6.76641838]
[1734475690937,18.80900043,222.96,222.91,6.76641838]
[1734475691132,6.76641838,222.98,222.91,6.76641838]
[1734475691329,6.76641838,222.98,222.9,6.0028]
[1734475691330,25.53830553,222.98,222.9,6.0028]
[1734475691539,25.53830553,222.98,222.9,3.76]
[1734475691540,18.81247282,222.97,222.9,3.76]
[1734475691840,11.16375036,222.97,222.9,3.76]
[1734475692043,2.2424,222.95,222.9,3.76]
[1734475692437,18.81455841,222.97,222.9,3.76]
[1734475692637,11.16544294,222.97,222.9,3.76]
[1734475692938,6.76641838,222.98,222.9,6.0027]
[1734475693131,22.02419163,222.98,222.9,6.0027]
[1734475693333,11.16461624,222.97,222.9,6.0027]
[1734475693532,7.6491092,222.97,222.91,6.76641838]
[1734475693734,14.41552758,222.98,222.91,6.76641838]
[1734475693931,11.16355118,222.97,222.91,6.76641838]
[1734475694139,11.55851838,222.99,222.91,6.76641838]
[1734475694442,26.42101536,222.98,222.91,6.76641838]
[1734475694739,41.89321531,223.02,222.91,6.76641838]
[1734475694932,6.76641838,223.0,222.93,6.76641838]
[1734475695134,33.18703121,223.0,222.93,6.76641838]
[1734475695336,18.81241596,222.99,222.93,6.76641838]
[1734475695540,11.16387793,222.99,222.93,6.76641838]
[1734475695740,41.89321531,223.02,222.93,9.00881838]
[1734475696039,2.5111,223.05,222.95,6.76641838]
[1734475696241,6.76641838,223.04,222.97,6.76641838]
[1734475696435,7.6045803,223.04,222.98,3.76]
[1734475696642,26.40790849,223.05,222.98,3.76]
[1734475696839,18.80332819,223.04,222.98,3.76]
[1734475697043,6.76641838,223.05,222.98,3.76]
[1734475697338,2.2414,223.04,222.99,6.76641838]
[1734475697732,2.2413,223.06,222.99,6.76641838]
[1734475697936,26.40670989,223.09,223.01,6.76641838]
[1734475698136,6.76641838,223.1,223.03,6.76641838]
[1734475699042,25.55844641,223.1,223.03,6.76641838]
[1734475699343,6.76641838,223.1,223.03,6.76641838]
[1734475699541,9.00721838,223.1,223.03,6.76641838]
[1734475699733,6.76641838,223.1,223.01,2.2416]
[1734475699939,6.76641838,223.1,223.02,6.76641838]
[1734475700139,2.2407,223.11,223.04,6.76641838]
[1734475700437,6.76641838,223.12,223.05,3.76]
[1734475700846,6.76641838,223.12,223.05,6.0013]
[1734475701038,18.77165954,223.15,223.06,6.76641838]
[1734475701238,6.76641838,223.2,223.12,6.76641838]
[1734475701438,337.36776088,223.24,223.12,6.76641838]
[1734475701439,26.34941247,223.23,223.13,3.76]
[1734475701641,6.76641838,223.21,223.13,3.76]
[1734475701841,2.2397,223.21,223.14,6.76641838]
[1734475702143,12.57037893,223.24,223.14,6.76641838]
[1734475702445,12.57037893,223.24,223.13,3.76]
[1734475702446,6.76641838,223.23,223.16,6.76641838]
[1734475702743,4.9443,223.24,223.16,6.76641838]
[1734475703037,7.1837,223.24,223.16,6.76641838]
[1734475703453,4.9443,223.24,223.2,6.76641838]
[1734475703741,0.89581653,223.26,223.22,6.76641838]
[1734475703940,0.89581653,223.26,223.23,3.76]
[1734475704146,153.53237859,223.39,223.23,3.76]
[1734475704147,153.53237859,223.39,223.24,6.76641838]
[1734475704445,0.65698159,223.34,223.26,6.76641838]
[1734475704646,6.76641838,223.33,223.26,6.76641838]
[1734475705345,9.00491838,223.33,223.26,6.76641838]
[1734475706243,2.2384,223.34,223.26,6.76641838]
[1734475706746,2.2384,223.34,223.28,6.76641838]
[1734475707842,18.60502592,223.44,223.32,6.76641838]
[1734475708050,2.238,223.38,223.33,3.76]
[1734475708340,2.238,223.38,223.32,6.76641838]
[1734475708341,6.76641838,223.38,223.32,3.76]
[1734475709340,2.2381,223.37,223.32,3.76]
[1734475709847,2.5202,223.43,223.32,3.76]
[1734475709848,5.50697612,223.42,223.32,3.76]
[1734475710048,5.50697612,223.42,223.32,12.76501838]
[1734475710049,6.76641838,223.4,223.32,12.76501838]
[1734475710243,5.50697612,223.42,223.34,6.76641838]
[1734475710547,9.28661838,223.43,223.36,6.76641838]
[1734475710942,4.4719,223.59,223.38,6.76641838]
[1734475711145,4.4719,223.59,223.39,3.76]
[1734475711146,6.76641838,223.46,223.39,3.76]
[1734475711339,2.4079,223.55,223.42,6.76641838]
[1734475711543,2.4079,223.55,223.39,3.76]
[1734475711544,9.17431838,223.55,223.46,6.76641838]
[1734475711847,2.4079,223.55,223.47,3.76]
[1734475712046,2.4079,223.55,223.51,2.2366]
[1734475713150,2.4079,223.55,223.47,3.76]
[1734475713151,9.17431838,223.55,223.47,3.76]
[1734475713342,2.2367,223.51,223.47,3.76]
[1734475713541,6.76641838,223.53,223.42,2.2376]
[1734475713746,6.76641838,223.53,223.38,7.0581]
[1734475713747,2.4079,223.55,223.44,6.76641838]
[1734475714048,2.4079,223.55,223.43,3.76]
[1734475714049,2.2367,223.51,223.43,3.76]
[1734475714943,2.4079,223.55,223.44,2.2374]
[1734475714944,2.2367,223.52,223.44,2.2374]
[1734475715349,2.2367,223.52,223.45,10.57770597]
[1734475716548,2.4079,223.55,223.45,12.81500597]
[1734475716749,2.4079,223.55,223.44,5.48848127]
[1734475717049,2.4079,223.55,223.45,3.62]
[1734475717249,2.2367,223.53,223.45,5.8574]
[1734475722754,2.2367,223.52,223.45,5.8574]
[1734475724463,2.2366,223.54,223.45,5.8574]
[1734475724757,2.4079,223.55,223.45,5.8574]